[Event "Titled Tuesday Blitz July 18 Late 2023"]
[White "Priasmoro, Novendra"]
[Black "Hakobyan, Aram"]
[WhiteFideId "7105029"]
[BlackFideId "13306677"]
[WhiteElo "2779"]
[BlackElo "2966"]
[Result "0-1"]
[Round "7"]
[TimeControl "180+2"]
[Date "2023.07.18"]
[WhiteClock "0:00:02"]
[BlackClock "0:00:05"]
[Board "13"]

1. e4 {[%clk 0:03:00]}  g6 {[%clk 0:02:57]} 2. d4 {[%clk 0:03:00]}  Bg7 {[%clk 0:02:57]} 3. Nc3 {[%clk 0:02:59]}  c5 {[%clk 0:02:58]} 4. Nf3 {[%clk 0:02:56]}  Nc6 {[%clk 0:02:53]} 5. Be3 {[%clk 0:02:50]}  Nf6 {[%clk 0:02:44]} 6. d5 {[%clk 0:02:48]}  Nb8 {[%clk 0:02:40]} 7. h3 {[%clk 0:02:47]}  d6 {[%clk 0:02:40]} 8. Be2 {[%clk 0:02:44]}  O-O {[%clk 0:02:39]} 9. Nd2 {[%clk 0:02:43]}  Nbd7 {[%clk 0:02:36]} 10. O-O {[%clk 0:02:41]}  Rb8 {[%clk 0:02:37]} 11. a4 {[%clk 0:02:41]}  Ne8 {[%clk 0:02:38]} 12. Nc4 {[%clk 0:02:41]}  Nc7 {[%clk 0:02:39]} 13. f4 {[%clk 0:02:38]}  a6 {[%clk 0:02:33]} 14. a5 {[%clk 0:02:32]}  Nb5 {[%clk 0:02:32]} 15. Na4 {[%clk 0:02:30]}  Nf6 {[%clk 0:01:54]} 16. Bf3 {[%clk 0:02:27]}  e6 {[%clk 0:01:52]} 17. Nab6 {[%clk 0:02:09]}  exd5 {[%clk 0:01:49]} 18. exd5 {[%clk 0:02:06]}  Bf5 {[%clk 0:01:45]} 19. g4 {[%clk 0:02:01]}  Be4 {[%clk 0:01:39]} 20. g5 {[%clk 0:01:59]}  Bxf3 {[%clk 0:01:36]} 21. Qxf3 {[%clk 0:02:00]}  Nh5 {[%clk 0:01:24]} 22. c3 {[%clk 0:01:55]}  Re8 {[%clk 0:01:25]} 23. f5 {[%clk 0:01:52]}  Rxe3 {[%clk 0:00:31]} 24. Qxe3 {[%clk 0:01:44]}  Nd4 {[%clk 0:00:26]} 25. f6 {[%clk 0:01:40]}  Nc2 {[%clk 0:00:26]} 26. Qf2 {[%clk 0:01:30]}  Nxa1 {[%clk 0:00:25]} 27. Rxa1 {[%clk 0:01:23]}  Bf8 {[%clk 0:00:23]} 28. Re1 {[%clk 0:01:22]}  h6 {[%clk 0:00:21]} 29. h4 {[%clk 0:01:23]}  Qc7 {[%clk 0:00:19]} 30. Qf3 {[%clk 0:01:16]}  Rd8 {[%clk 0:00:19]} 31. Qg4 {[%clk 0:01:14]}  Qb8 {[%clk 0:00:17]} 32. Nd2 {[%clk 0:01:01]}  Re8 {[%clk 0:00:16]} 33. Re2 {[%clk 0:00:46]}  Rxe2 {[%clk 0:00:12]} 34. Qxe2 {[%clk 0:00:47]}  Ng3 {[%clk 0:00:12]} 35. Qe1 {[%clk 0:00:40]}  Nf5 {[%clk 0:00:13]} 36. Kg2 {[%clk 0:00:32]}  Qd8 {[%clk 0:00:11]} 37. Kh3 {[%clk 0:00:32]}  hxg5 {[%clk 0:00:11]} 38. hxg5 {[%clk 0:00:33]}  c4 {[%clk 0:00:05]} 39. Ndxc4 {[%clk 0:00:30]}  Qc7 {[%clk 0:00:05]} 40. b4 {[%clk 0:00:30]}  Qd8 {[%clk 0:00:04]} 41. Kg4 {[%clk 0:00:30]}  Kh7 {[%clk 0:00:03]} 42. Kf4 {[%clk 0:00:24]}  Kg8 {[%clk 0:00:04]} 43. Nd2 {[%clk 0:00:21]}  Qc7 {[%clk 0:00:04]} 44. c4 {[%clk 0:00:22]}  Qd8 {[%clk 0:00:03]} 45. Nf3 {[%clk 0:00:20]}  Qc7 {[%clk 0:00:02]} 46. Nh4 {[%clk 0:00:17]}  Nxh4 {[%clk 0:00:01]} 47. Qxh4 {[%clk 0:00:18]}  Qd8 {[%clk 0:00:01]} 48. Qe1 {[%clk 0:00:18]}  Qc7 {[%clk 0:00:01]} 49. Qe2 {[%clk 0:00:19]}  Qd8 {[%clk 0:00:02]} 50. Qd1 {[%clk 0:00:19]}  Qe8 {[%clk 0:00:01]} 51. Qd2 {[%clk 0:00:10]}  Qe5+ {[%clk 0:00:02]} 52. Kf3 {[%clk 0:00:10]}  Qf5+ {[%clk 0:00:02]} 53. Qf4 {[%clk 0:00:08]}  Qb1 {[%clk 0:00:03]} 54. c5 {[%clk 0:00:03]}  dxc5 {[%clk 0:00:04]} 55. d6 {[%clk 0:00:01]}  Qd3+ {[%clk 0:00:03]} 56. Qe3 {[%clk 0:00:02]}  Qf5+ {[%clk 0:00:03]} 57. Qf4 {[%clk 0:00:02]}  Qxf4+ {[%clk 0:00:03]} 58. Kxf4 {[%clk 0:00:03]}  Bxd6+ {[%clk 0:00:04]} 59. Ke4 {[%clk 0:00:04]}  cxb4 {[%clk 0:00:05]} 60. Nc4 {[%clk 0:00:04]}  Bc7 {[%clk 0:00:05]} 61. Kd3 {[%clk 0:00:05]}  Bf4 {[%clk 0:00:04]} 62. Kc2 {[%clk 0:00:05]}  Bxg5 {[%clk 0:00:05]} 63. Nd6 {[%clk 0:00:06]}  Bxf6 {[%clk 0:00:04]} 64. Nxb7 {[%clk 0:00:07]}  Be7 {[%clk 0:00:05]} 65. Kb3 {[%clk 0:00:02]}  g5 {[%clk 0:00:05]} 0-1


[Site "https://www.chess.com"]

[Event "Titled Tuesday Blitz July 18 Late 2023"]
[White "Matlakov, Maxim"]
[Black "Riehle, Marco"]
[WhiteFideId "4168003"]
[BlackFideId "12904392"]
[WhiteElo "2958"]
[BlackElo "2747"]
[Result "1-0"]
[Round "7"]
[TimeControl "180+2"]
[Date "2023.07.18"]
[WhiteClock "0:01:01"]
[BlackClock "0:01:24"]
[Board "14"]

1. d4 {[%clk 0:03:00]}  d5 {[%clk 0:02:59]} 2. Nf3 {[%clk 0:03:00]}  Nf6 {[%clk 0:02:59]} 3. e3 {[%clk 0:03:00]}  e6 {[%clk 0:02:59]} 4. Bd3 {[%clk 0:02:59]}  c5 {[%clk 0:02:59]} 5. O-O {[%clk 0:02:59]}  c4 {[%clk 0:02:59]} 6. Be2 {[%clk 0:02:59]}  Bd6 {[%clk 0:03:00]} 7. b3 {[%clk 0:02:59]}  cxb3 {[%clk 0:02:59]} 8. axb3 {[%clk 0:02:59]}  O-O {[%clk 0:02:58]} 9. Ba3 {[%clk 0:02:58]}  Ne4 {[%clk 0:02:55]} 10. Bxd6 {[%clk 0:02:56]}  Qxd6 {[%clk 0:02:56]} 11. c4 {[%clk 0:02:55]}  b6 {[%clk 0:02:54]} 12. Qc1 {[%clk 0:02:54]}  Bb7 {[%clk 0:02:53]} 13. Nc3 {[%clk 0:02:50]}  Nxc3 {[%clk 0:02:52]} 14. Qxc3 {[%clk 0:02:51]}  Nd7 {[%clk 0:02:48]} 15. Qb2 {[%clk 0:02:49]}  Rfc8 {[%clk 0:02:45]} 16. Rfc1 {[%clk 0:02:49]}  h6 {[%clk 0:02:45]} 17. h3 {[%clk 0:02:50]}  a5 {[%clk 0:02:41]} 18. Qa3 {[%clk 0:02:49]}  Qxa3 {[%clk 0:02:37]} 19. Rxa3 {[%clk 0:02:50]}  dxc4 {[%clk 0:02:36]} 20. bxc4 {[%clk 0:02:49]}  b5 {[%clk 0:02:35]} 21. Rca1 {[%clk 0:02:21]}  bxc4 {[%clk 0:02:32]} 22. Rxa5 {[%clk 0:02:21]}  Rxa5 {[%clk 0:02:29]} 23. Rxa5 {[%clk 0:02:21]}  c3 {[%clk 0:02:29]} 24. Ra1 {[%clk 0:02:21]}  c2 {[%clk 0:02:20]} 25. Rc1 {[%clk 0:02:20]}  Be4 {[%clk 0:02:20]} 26. Ne1 {[%clk 0:02:20]}  Rb8 {[%clk 0:02:16]} 27. Nxc2 {[%clk 0:01:57]}  Rc8 {[%clk 0:02:16]} 28. Bd1 {[%clk 0:01:57]}  Nb6 {[%clk 0:02:16]} 29. Rb1 {[%clk 0:01:21]}  Nd5 {[%clk 0:02:10]} 30. Rb2 {[%clk 0:01:20]}  g5 {[%clk 0:02:03]} 31. Kh2 {[%clk 0:01:16]}  Kg7 {[%clk 0:01:52]} 32. Nb4 {[%clk 0:01:12]}  Rc1 {[%clk 0:01:38]} 33. Nxd5 {[%clk 0:01:11]}  exd5 {[%clk 0:01:38]} 34. Bh5 {[%clk 0:01:08]}  Rf1 {[%clk 0:01:34]} 35. Kg3 {[%clk 0:01:08]}  Rg1 {[%clk 0:01:26]} 36. f3 {[%clk 0:01:07]}  Bg6 {[%clk 0:01:26]} 37. Bxg6 {[%clk 0:01:07]}  Kxg6 {[%clk 0:01:27]} 38. Rb5 {[%clk 0:01:07]}  Re1 {[%clk 0:01:26]} 39. Kf2 {[%clk 0:01:07]}  Rd1 {[%clk 0:01:26]} 40. Rxd5 {[%clk 0:01:07]}  Rd2+ {[%clk 0:01:27]} 41. Kg3 {[%clk 0:01:04]}  f6 {[%clk 0:01:27]} 42. e4 {[%clk 0:01:03]}  h5 {[%clk 0:01:27]} 43. h4 {[%clk 0:01:01]}  gxh4+ {[%clk 0:01:27]} 44. Kh3 {[%clk 0:01:02]}  Kh6 {[%clk 0:01:24]} 45. Rf5 {[%clk 0:01:02]}  Rxd4 {[%clk 0:01:23]} 46. Rxf6+ {[%clk 0:01:01]}  Kg5 {[%clk 0:01:24]} 47. Rf5+ {[%clk 0:01:01]}  Kg6 {[%clk 0:01:24]} 48. Kxh4 {[%clk 0:01:02]}  Rd2 {[%clk 0:01:24]} 49. Rg5+ {[%clk 0:01:02]}  Kf6 {[%clk 0:01:25]} 50. Kxh5 {[%clk 0:01:02]}  Rd1 {[%clk 0:01:26]} 51. Rf5+ {[%clk 0:01:02]}  Ke6 {[%clk 0:01:26]} 52. Kg4 {[%clk 0:01:02]}  Rh1 {[%clk 0:01:26]} 53. g3 {[%clk 0:01:02]}  Rh8 {[%clk 0:01:25]} 54. f4 {[%clk 0:01:03]}  Kd6 {[%clk 0:01:26]} 55. e5+ {[%clk 0:01:03]}  Ke6 {[%clk 0:01:25]} 56. Rf6+ {[%clk 0:01:03]}  Kd5 {[%clk 0:01:26]} 57. Kf5 {[%clk 0:01:03]}  Rh5+ {[%clk 0:01:26]} 58. Kg6 {[%clk 0:01:03]}  Rh8 {[%clk 0:01:27]} 59. g4 {[%clk 0:01:03]}  Ke4 {[%clk 0:01:27]} 60. g5 {[%clk 0:01:03]}  Rg8+ {[%clk 0:01:27]} 61. Kf7 {[%clk 0:01:03]}  Rc8 {[%clk 0:01:28]} 62. g6 {[%clk 0:01:03]}  Kf3 {[%clk 0:01:28]} 63. g7 {[%clk 0:01:03]}  Rc7+ {[%clk 0:01:26]} 64. Kg6 {[%clk 0:01:03]}  Rc3 {[%clk 0:01:24]} 65. g8=Q {[%clk 0:01:02]}  Kg2 {[%clk 0:01:25]} 66. Qd5+ {[%clk 0:01:01]}  Kh2 {[%clk 0:01:24]} 67. Rf5 {[%clk 0:01:02]}  Rg3+ {[%clk 0:01:25]} 68. Rg5 {[%clk 0:01:02]}  Kh3 {[%clk 0:01:24]} 69. Qh1# {[%clk 0:01:01]} 1-0


[Site "https://www.chess.com"]

[Event "Titled Tuesday Blitz July 18 Late 2023"]
[White "Van Foreest, Jorden"]
[Black "Wieczorek, Oskar"]
[WhiteFideId "1039784"]
[BlackFideId "1133950"]
[WhiteElo "2952"]
[BlackElo "2721"]
[Result "1-0"]
[Round "7"]
[TimeControl "180+2"]
[Date "2023.07.18"]
[WhiteClock "0:00:28"]
[BlackClock "0:00:00"]
[Board "15"]

1. c4 {[%clk 0:03:00]}  g6 {[%clk 0:02:59]} 2. Nc3 {[%clk 0:02:59]}  Bg7 {[%clk 0:03:00]} 3. d4 {[%clk 0:03:00]}  c5 {[%clk 0:02:58]} 4. d5 {[%clk 0:03:00]}  Nf6 {[%clk 0:02:58]} 5. e4 {[%clk 0:03:00]}  d6 {[%clk 0:02:59]} 6. h3 {[%clk 0:03:01]}  O-O {[%clk 0:02:59]} 7. Nf3 {[%clk 0:03:00]}  e6 {[%clk 0:02:58]} 8. Bd3 {[%clk 0:02:57]}  Na6 {[%clk 0:02:58]} 9. O-O {[%clk 0:02:57]}  Nc7 {[%clk 0:02:58]} 10. Re1 {[%clk 0:02:56]}  Rb8 {[%clk 0:02:58]} 11. Bf4 {[%clk 0:02:54]}  exd5 {[%clk 0:02:45]} 12. exd5 {[%clk 0:02:54]}  b5 {[%clk 0:02:45]} 13. Qd2 {[%clk 0:02:33]}  bxc4 {[%clk 0:02:39]} 14. Bxc4 {[%clk 0:02:33]}  a6 {[%clk 0:02:27]} 15. Re2 {[%clk 0:02:30]}  Nb5 {[%clk 0:02:25]} 16. Rae1 {[%clk 0:02:30]}  Nd4 {[%clk 0:01:49]} 17. Nxd4 {[%clk 0:02:06]}  cxd4 {[%clk 0:01:50]} 18. Qxd4 {[%clk 0:02:06]}  Nh5 {[%clk 0:01:50]} 19. Qd2 {[%clk 0:02:07]}  Rxb2 {[%clk 0:01:50]} 20. Qxb2 {[%clk 0:02:05]}  Nxf4 {[%clk 0:01:50]} 21. Re3 {[%clk 0:02:01]}  Bf5 {[%clk 0:00:50]} 22. Qd2 {[%clk 0:01:58]}  Qg5 {[%clk 0:00:48]} 23. g3 {[%clk 0:01:28]}  Nxh3+ {[%clk 0:00:44]} 24. Kg2 {[%clk 0:01:26]}  Nf4+ {[%clk 0:00:39]} 25. Kf1 {[%clk 0:01:25]}  Bh3+ {[%clk 0:00:28]} 26. Kg1 {[%clk 0:01:25]}  Ng2 {[%clk 0:00:29]} 27. Ne4 {[%clk 0:00:59]}  Qd8 {[%clk 0:00:18]} 28. Bxa6 {[%clk 0:00:53]}  Nxe3 {[%clk 0:00:14]} 29. Qxe3 {[%clk 0:00:41]}  Qa5 {[%clk 0:00:12]} 30. Bc4 {[%clk 0:00:41]}  Qb4 {[%clk 0:00:11]} 31. Bb3 {[%clk 0:00:40]}  Bh6 {[%clk 0:00:06]} 32. Nf6+ {[%clk 0:00:26]}  Kg7 {[%clk 0:00:05]} 33. Ne8+ {[%clk 0:00:27]}  Kg8 {[%clk 0:00:05]} 34. Qe7 {[%clk 0:00:28]}  Qg4 {[%clk 0:00:00]} 35. Nf6+ {[%clk 0:00:28]} 1-0


[Site "https://www.chess.com"]

[Event "Titled Tuesday Blitz July 18 Late 2023"]
[White "Mikhailovsky, Vladimir"]
[Black "Bluebaum, Matthias"]
[WhiteFideId "34105414"]
[BlackFideId "24651516"]
[WhiteElo "2734"]
[BlackElo "3009"]
[Result "0-1"]
[Round "7"]
[TimeControl "180+2"]
[Date "2023.07.18"]
[WhiteClock "0:00:00"]
[BlackClock "0:01:41"]
[Board "16"]

1. e4 {[%clk 0:03:00]}  e6 {[%clk 0:02:59]} 2. d4 {[%clk 0:02:59]}  d5 {[%clk 0:03:00]} 3. e5 {[%clk 0:02:59]}  c5 {[%clk 0:03:00]} 4. Qg4 {[%clk 0:03:00]}  Nc6 {[%clk 0:02:59]} 5. Nf3 {[%clk 0:03:00]}  Nge7 {[%clk 0:02:54]} 6. Bd3 {[%clk 0:02:57]}  h5 {[%clk 0:02:44]} 7. Qf4 {[%clk 0:02:44]}  c4 {[%clk 0:02:44]} 8. Be2 {[%clk 0:02:43]}  Nf5 {[%clk 0:02:36]} 9. c3 {[%clk 0:02:39]}  f6 {[%clk 0:02:27]} 10. h3 {[%clk 0:02:13]}  Bd7 {[%clk 0:02:08]} 11. Qd2 {[%clk 0:01:51]}  fxe5 {[%clk 0:02:06]} 12. Nxe5 {[%clk 0:01:29]}  Nxe5 {[%clk 0:02:05]} 13. dxe5 {[%clk 0:01:29]}  Qc7 {[%clk 0:02:05]} 14. Qg5 {[%clk 0:01:00]}  Be7 {[%clk 0:01:40]} 15. Qg6+ {[%clk 0:00:51]}  Kd8 {[%clk 0:01:40]} 16. Bf4 {[%clk 0:00:24]}  Qb6 {[%clk 0:01:40]} 17. Nd2 {[%clk 0:00:00]}  Be8 {[%clk 0:01:41]} 0-1


[Site "https://www.chess.com"]

[Event "Titled Tuesday Blitz July 18 Late 2023"]
[White "Papp, Levente"]
[Black "Kramnik, Vladimir"]
[WhiteFideId "751243"]
[BlackFideId "4101588"]
[WhiteElo "2722"]
[BlackElo "2969"]
[Result "0-1"]
[Round "7"]
[TimeControl "180+2"]
[Date "2023.07.18"]
[WhiteClock "0:00:04"]
[BlackClock "0:00:04"]
[Board "18"]

1. b3 {[%clk 0:03:00]}  e5 {[%clk 0:02:58]} 2. Bb2 {[%clk 0:03:00]}  Nc6 {[%clk 0:02:59]} 3. c4 {[%clk 0:03:01]}  Nge7 {[%clk 0:02:58]} 4. Nf3 {[%clk 0:02:59]}  d5 {[%clk 0:02:55]} 5. cxd5 {[%clk 0:02:49]}  Nxd5 {[%clk 0:02:54]} 6. g3 {[%clk 0:02:40]}  e4 {[%clk 0:02:38]} 7. Ne5 {[%clk 0:02:22]}  Qf6 {[%clk 0:02:27]} 8. Nc4 {[%clk 0:02:21]}  Qg6 {[%clk 0:02:20]} 9. Nc3 {[%clk 0:02:18]}  Nxc3 {[%clk 0:02:14]} 10. Bxc3 {[%clk 0:02:18]}  Bc5 {[%clk 0:02:10]} 11. Bg2 {[%clk 0:01:46]}  O-O {[%clk 0:02:10]} 12. O-O {[%clk 0:01:44]}  Rd8 {[%clk 0:02:06]} 13. Qc2 {[%clk 0:01:39]}  Bf5 {[%clk 0:02:04]} 14. Ne3 {[%clk 0:01:37]}  Bxe3 {[%clk 0:01:59]} 15. dxe3 {[%clk 0:01:35]}  h5 {[%clk 0:01:51]} 16. Rad1 {[%clk 0:01:28]}  h4 {[%clk 0:01:50]} 17. Rxd8+ {[%clk 0:01:26]}  Rxd8 {[%clk 0:01:50]} 18. Rd1 {[%clk 0:01:27]}  h3 {[%clk 0:01:45]} 19. Rxd8+ {[%clk 0:01:13]}  Nxd8 {[%clk 0:01:45]} 20. Qd2 {[%clk 0:01:12]}  Ne6 {[%clk 0:01:29]} 21. Bh1 {[%clk 0:01:05]}  Kh7 {[%clk 0:01:03]} 22. f3 {[%clk 0:00:56]}  Ng5 {[%clk 0:00:54]} 23. Kf2 {[%clk 0:00:47]}  Qc6 {[%clk 0:00:26]} 24. g4 {[%clk 0:00:34]}  exf3 {[%clk 0:00:21]} 25. exf3 {[%clk 0:00:17]}  Bxg4 {[%clk 0:00:21]} 26. e4 {[%clk 0:00:17]}  Be6 {[%clk 0:00:11]} 27. Bxg7 {[%clk 0:00:10]}  Nxe4+ {[%clk 0:00:11]} 28. fxe4 {[%clk 0:00:10]}  Kxg7 {[%clk 0:00:11]} 29. Qg5+ {[%clk 0:00:11]}  Kf8 {[%clk 0:00:12]} 30. Qd8+ {[%clk 0:00:11]}  Qe8 {[%clk 0:00:12]} 31. Qxc7 {[%clk 0:00:11]}  Qe7 {[%clk 0:00:06]} 32. Qb8+ {[%clk 0:00:11]}  Kg7 {[%clk 0:00:05]} 33. Qg3+ {[%clk 0:00:11]}  Kh7 {[%clk 0:00:05]} 34. Qf4 {[%clk 0:00:06]}  Qc5+ {[%clk 0:00:04]} 35. Kg3 {[%clk 0:00:07]}  Qg1+ {[%clk 0:00:04]} 36. Kh4 {[%clk 0:00:04]}  Qxh1 {[%clk 0:00:04]} 37. Kh5 {[%clk 0:00:04]}  Qd1+ {[%clk 0:00:04]} 38. Kg5 {[%clk 0:00:04]}  Qg1+ {[%clk 0:00:03]} 39. Kh5 {[%clk 0:00:05]}  Qg6+ {[%clk 0:00:04]} 40. Kh4 {[%clk 0:00:04]}  Qh6+ {[%clk 0:00:04]} 0-1


[Site "https://www.chess.com"]

[Event "Titled Tuesday Blitz July 18 Late 2023"]
[White "Amburgy, Ryan"]
[Black "Svane, Rasmus"]
[WhiteFideId "30924820"]
[BlackFideId "4657101"]
[WhiteElo "2682"]
[BlackElo "2955"]
[Result "0-1"]
[Round "7"]
[TimeControl "180+2"]
[Date "2023.07.18"]
[WhiteClock "0:00:20"]
[BlackClock "0:01:15"]
[Board "20"]

1. Nf3 {[%clk 0:03:00]}  d5 {[%clk 0:02:59]} 2. c4 {[%clk 0:02:59]}  e6 {[%clk 0:02:59]} 3. d4 {[%clk 0:02:58]}  a6 {[%clk 0:02:58]} 4. cxd5 {[%clk 0:02:57]}  exd5 {[%clk 0:02:59]} 5. Nc3 {[%clk 0:02:56]}  Nf6 {[%clk 0:02:58]} 6. Qb3 {[%clk 0:02:56]}  c6 {[%clk 0:02:49]} 7. Bg5 {[%clk 0:02:55]}  Be7 {[%clk 0:02:49]} 8. e3 {[%clk 0:02:55]}  h6 {[%clk 0:02:49]} 9. Bh4 {[%clk 0:02:55]}  O-O {[%clk 0:02:48]} 10. Bd3 {[%clk 0:02:55]}  Re8 {[%clk 0:02:49]} 11. O-O {[%clk 0:02:55]}  Nbd7 {[%clk 0:02:49]} 12. Qc2 {[%clk 0:02:54]}  a5 {[%clk 0:02:44]} 13. Na4 {[%clk 0:02:44]}  Ne4 {[%clk 0:02:44]} 14. Bxe7 {[%clk 0:02:43]}  Qxe7 {[%clk 0:02:45]} 15. Rac1 {[%clk 0:02:37]}  Nd6 {[%clk 0:02:43]} 16. Nc5 {[%clk 0:02:34]}  Nxc5 {[%clk 0:02:41]} 17. Qxc5 {[%clk 0:02:34]}  Qf6 {[%clk 0:02:38]} 18. Ne5 {[%clk 0:02:31]}  Bf5 {[%clk 0:02:38]} 19. Rfd1 {[%clk 0:02:28]}  Bxd3 {[%clk 0:02:37]} 20. Nxd3 {[%clk 0:02:29]}  h5 {[%clk 0:02:27]} 21. Qc2 {[%clk 0:02:19]}  g6 {[%clk 0:02:26]} 22. Ne5 {[%clk 0:02:18]}  Re7 {[%clk 0:02:21]} 23. Rb1 {[%clk 0:02:08]}  Kg7 {[%clk 0:02:21]} 24. h3 {[%clk 0:02:06]}  Nf5 {[%clk 0:02:18]} 25. g3 {[%clk 0:01:49]}  Nd6 {[%clk 0:02:15]} 26. Qe2 {[%clk 0:01:45]}  Ne4 {[%clk 0:02:14]} 27. Qf3 {[%clk 0:01:43]}  Qe6 {[%clk 0:02:14]} 28. Kg2 {[%clk 0:01:42]}  Ng5 {[%clk 0:02:13]} 29. Qf4 {[%clk 0:01:36]}  Qxh3+ {[%clk 0:02:12]} 30. Kg1 {[%clk 0:01:37]}  Ne6 {[%clk 0:02:09]} 31. Qf3 {[%clk 0:01:30]}  h4 {[%clk 0:02:08]} 32. Qg2 {[%clk 0:01:24]}  Qxg2+ {[%clk 0:02:06]} 33. Kxg2 {[%clk 0:01:25]}  hxg3 {[%clk 0:02:07]} 34. Kxg3 {[%clk 0:01:25]}  Ng5 {[%clk 0:01:57]} 35. f3 {[%clk 0:01:19]}  f6 {[%clk 0:01:56]} 36. Ng4 {[%clk 0:01:19]}  Nf7 {[%clk 0:01:55]} 37. Rd3 {[%clk 0:01:14]}  Rae8 {[%clk 0:01:53]} 38. Kf2 {[%clk 0:01:04]}  f5 {[%clk 0:01:52]} 39. Nh2 {[%clk 0:01:04]}  f4 {[%clk 0:01:43]} 40. Re1 {[%clk 0:01:04]}  Nd6 {[%clk 0:01:38]} 41. Ng4 {[%clk 0:00:56]}  Nc4 {[%clk 0:01:29]} 42. b3 {[%clk 0:00:41]}  Nxe3 {[%clk 0:01:27]} 43. Nxe3 {[%clk 0:00:42]}  Rxe3 {[%clk 0:01:27]} 44. Rdxe3 {[%clk 0:00:42]}  Rxe3 {[%clk 0:01:28]} 45. Rg1 {[%clk 0:00:43]}  Rd3 {[%clk 0:01:26]} 46. Re1 {[%clk 0:00:41]}  Kf7 {[%clk 0:01:23]} 47. Kg2 {[%clk 0:00:38]}  Rxd4 {[%clk 0:01:20]} 48. Kh3 {[%clk 0:00:38]}  Rd2 {[%clk 0:01:20]} 49. Kg4 {[%clk 0:00:39]}  Rxa2 {[%clk 0:01:20]} 50. Kxf4 {[%clk 0:00:39]}  a4 {[%clk 0:01:21]} 51. bxa4 {[%clk 0:00:38]}  Rxa4+ {[%clk 0:01:21]} 52. Ke5 {[%clk 0:00:38]}  Ra3 {[%clk 0:01:17]} 53. f4 {[%clk 0:00:37]}  Ra4 {[%clk 0:01:17]} 54. Rf1 {[%clk 0:00:20]}  Ke7 {[%clk 0:01:15]} 0-1


[Site "https://www.chess.com"]

[Event "Titled Tuesday Blitz July 18 Late 2023"]
[White "Durarbayli, Vasif"]
[Black "Pinero Rodriguez, Carlos Jose"]
[WhiteFideId "13402935"]
[BlackFideId "3901726"]
[WhiteElo "2922"]
[BlackElo "2608"]
[Result "0-1"]
[Round "7"]
[TimeControl "180+2"]
[Date "2023.07.18"]
[WhiteClock "0:00:00"]
[BlackClock "0:00:16"]
[Board "21"]

1. e4 {[%clk 0:02:57]}  c5 {[%clk 0:03:00]} 2. Nf3 {[%clk 0:02:56]}  e6 {[%clk 0:03:00]} 3. d4 {[%clk 0:02:56]}  cxd4 {[%clk 0:03:01]} 4. Nxd4 {[%clk 0:02:56]}  a6 {[%clk 0:03:01]} 5. g3 {[%clk 0:02:56]}  Qc7 {[%clk 0:03:01]} 6. Bg2 {[%clk 0:02:56]}  Nf6 {[%clk 0:03:02]} 7. O-O {[%clk 0:02:56]}  Be7 {[%clk 0:03:03]} 8. Re1 {[%clk 0:02:56]}  d6 {[%clk 0:03:03]} 9. b3 {[%clk 0:02:56]}  O-O {[%clk 0:03:02]} 10. Bb2 {[%clk 0:02:56]}  Nc6 {[%clk 0:03:03]} 11. c4 {[%clk 0:02:55]}  Bd7 {[%clk 0:03:03]} 12. Nc3 {[%clk 0:02:55]}  Rac8 {[%clk 0:03:03]} 13. Rc1 {[%clk 0:02:55]}  Ne5 {[%clk 0:03:03]} 14. f4 {[%clk 0:02:52]}  Ng6 {[%clk 0:03:03]} 15. Kh1 {[%clk 0:02:51]}  Qb8 {[%clk 0:02:56]} 16. Qe2 {[%clk 0:02:50]}  Rfd8 {[%clk 0:02:43]} 17. e5 {[%clk 0:02:16]}  dxe5 {[%clk 0:02:40]} 18. fxe5 {[%clk 0:02:16]}  Ne8 {[%clk 0:02:39]} 19. Qh5 {[%clk 0:02:02]}  b5 {[%clk 0:02:20]} 20. cxb5 {[%clk 0:01:58]}  axb5 {[%clk 0:02:21]} 21. Nf3 {[%clk 0:01:59]}  Bc6 {[%clk 0:02:14]} 22. Rf1 {[%clk 0:01:31]}  b4 {[%clk 0:02:12]} 23. Ne2 {[%clk 0:01:31]}  Bb5 {[%clk 0:02:01]} 24. Rxc8 {[%clk 0:01:29]}  Rxc8 {[%clk 0:02:02]} 25. Nfd4 {[%clk 0:01:29]}  Bd7 {[%clk 0:01:34]} 26. Be4 {[%clk 0:01:11]}  f5 {[%clk 0:01:17]} 27. exf6 {[%clk 0:00:33]}  Nxf6 {[%clk 0:01:16]} 28. Qf3 {[%clk 0:00:30]}  Rf8 {[%clk 0:00:56]} 29. Kg1 {[%clk 0:00:19]}  Bc5 {[%clk 0:00:46]} 30. Rc1 {[%clk 0:00:16]}  Qd6 {[%clk 0:00:41]} 31. Kg2 {[%clk 0:00:10]}  Nxe4 {[%clk 0:00:41]} 32. Qxe4 {[%clk 0:00:10]}  e5 {[%clk 0:00:40]} 33. Qc2 {[%clk 0:00:01]}  Bxd4 {[%clk 0:00:35]} 34. Bxd4 {[%clk 0:00:01]}  exd4 {[%clk 0:00:35]} 35. Qc4+ {[%clk 0:00:02]}  Kh8 {[%clk 0:00:33]} 36. Qxd4 {[%clk 0:00:03]}  Bc6+ {[%clk 0:00:25]} 37. Kg1 {[%clk 0:00:02]}  Qe6 {[%clk 0:00:25]} 38. Qd3 {[%clk 0:00:01]}  Ne5 {[%clk 0:00:21]} 39. Nd4 {[%clk 0:00:00]}  Qd5 {[%clk 0:00:16]} 0-1


[Site "https://www.chess.com"]